fUSD/lending_fUSD_20250623
["ID","MTS","AMOUNT","RATE_DAILY","PERIOD"]
[367135339,1750665122128,-551.22,0.00029315,3]
[367135340,1750665122138,-490.0,0.00029315,3]
[367135341,1750665122147,-5782.36,0.00029315,3]
[367135342,1750665122159,-8133.36,0.00029315,3]
[367135343,1750665122169,-881.99,0.00029315,3]
[367135344,1750665122179,-1074.01,0.00029315,3]
[367135345,1750665122188,-1196.57,0.00029315,3]
[367135346,1750665122197,-1044.39,0.00029315,60]
[367135347,1750665122207,-490.0,0.00029315,3]
[367135348,1750665122216,-2487.78,0.00029315,3]
[367135349,1750665122234,-1615.17,0.00029315,3]
[367135350,1750665122245,-490.0,0.00029315,3]
[367135351,1750665122255,-1010.88,0.00029315,3]
[367135352,1750665122265,-2044.71,0.00029315,3]
[367135353,1750665122275,-607.3,0.00029315,3]
[367135354,1750665122285,-1117.87,0.00029315,3]
[367135355,1750665122295,-1227.5,0.00029315,3]
[367135356,1750665122304,-2.60755689,0.00029315,7]
[367135357,1750665123192,-524.2,0.00028219,3]
[367135358,1750665123207,-490.0,0.00029041,3]
[367135359,1750665123227,-148.39244311,0.00029315,7]
[367135360,1750665123242,-2305.53,0.00029315,3]
[367135361,1750665123264,-722.87,0.00029315,3]
[367135362,1750665123279,-943.84,0.00029315,3]
[367135363,1750665123295,-490.0,0.00029315,3]
[367135364,1750665123311,-5428.27,0.00029315,3]
[367135365,1750665123327,-874.3,0.00029315,3]
[367135366,1750665123342,-1288.28,0.00029315,3]
[367135367,1750665123358,-6106.07383461,0.00029315,3]
[367135368,1750665123981,-151.33,0.0001399,2]
[367135369,1750665123991,-151.33,0.0001399,2]
[367135370,1750665124000,-151.33,0.0001399,2]
[367135371,1750665124010,-151.33,0.0001399,2]
[367135372,1750665124022,-151.33,0.0001399,2]
[367135373,1750665124031,-151.33,0.0001399,2]
[367135374,1750665124041,-151.33,0.0001399,2]
[367135375,1750665124050,-490.0,0.00027671,3]
[367135376,1750665124060,-490.0,0.00027945,3]
[367135377,1750665124071,-490.0,0.00028219,3]
[367135378,1750665124081,-524.2,0.00028493,3]
[367135379,1750665124091,-490.0,0.00028493,3]
[367135380,1750665124100,-524.2,0.00028767,3]
[367135381,1750665124110,-490.0,0.00028767,3]
[367135382,1750665124120,-524.2,0.00029041,3]
[367135383,1750665124129,-490.0,0.00029041,3]
[367135384,1750665124139,-12692.95691894,0.00029315,3]
[367135385,1750665124180,-151.33,0.0001399,2]
[367135386,1750665124190,-151.33,0.0001399,2]
[367135387,1750665124200,-1885.94,0.00029315,3]
[367135388,1750665124212,-1190.87093173,0.00029315,3]
[367135389,1750665126059,-151.33,0.0001399,2]
[367135390,1750665126069,-151.33,0.0001399,2]
[367135391,1750665126078,-151.33,0.0001399,2]
[367135392,1750665126088,-151.33,0.0001399,2]
[367135393,1750665126097,-151.33,0.0001399,2]
[367135394,1750665126107,-151.33,0.0001399,2]
[367135395,1750665126117,-151.33,0.0001399,2]
[367135396,1750665126126,-151.33,0.0001399,2]
[367135397,1750665126135,-151.33,0.0001399,2]
[367135398,1750665126144,-151.33,0.0001399,2]
[367135399,1750665126154,-151.33,0.0001399,2]
[367135400,1750665126165,-151.33,0.0001399,2]
[367135401,1750665126174,-151.33,0.0001399,2]
[367135402,1750665126184,-151.33,0.0001399,2]
[367135403,1750665126193,-151.33,0.0001399,2]
[367135404,1750665126203,-151.33,0.0001399,2]
[367135405,1750665126213,-151.33,0.0001399,2]
[367135406,1750665126222,-151.33,0.0001399,2]
[367135407,1750665126232,-151.33,0.0001399,2]
[367135408,1750665126244,-151.33,0.0001399,2]
[367135409,1750665126255,-151.33,0.0001399,2]
[367135410,1750665126264,-151.33,0.0001399,2]
[367135411,1750665126275,-151.33,0.0001399,2]
[367135412,1750665126286,-151.33,0.0001399,2]
[367135413,1750665126296,-151.33,0.0001399,2]
[367135414,1750665126307,-151.33,0.0001399,2]
[367135415,1750665126318,-151.33,0.0001399,2]
[367135416,1750665126327,-301.1284444,0.00027397,3]
[367135417,1750665126336,-490.0,0.00027397,3]
[367135418,1750665126348,-490.0,0.00027397,3]
[367135419,1750665126358,-490.0,0.00027397,3]
[367135420,1750665126369,-490.0,0.00027671,3]
[367135421,1750665126378,-490.0,0.00027671,3]
[367135422,1750665126389,-490.0,0.00027945,3]
[367135423,1750665126398,-24.41362099,0.00028219,3]
[367135424,1750665126437,-151.33,0.0001399,2]
[367135425,1750665126447,-551.089245,0.00025,10]
[367135426,1750665126643,-3.53485415,0.0001399,2]
[367135427,1750665126672,-147.79514585,0.0001399,2]
[367135428,1750665126681,-151.33,0.0001399,2]
[367135429,1750665126691,-2242.91279083,0.00021918,2]
[367135430,1750665126701,-2242.91279083,0.00021918,2]
[367135431,1750665126711,-500.0,0.00024658,2]
[367135432,1750665126721,-593.47738946,0.00024658,2]
[367135433,1750665126731,-19448.910755,0.00025,10]
[367135434,1750665126741,-490.90917198,0.00027397,3]
[367135435,1750665126751,-490.0,0.00027671,3]
[367135436,1750665126762,-490.0,0.00027945,3]
[367135437,1750665126772,-465.58637901,0.00028219,3]
[367135438,1750665126782,-490.0,0.00028493,3]
[367135439,1750665126793,-490.0,0.00028493,3]
[367135440,1750665126803,-1240.90831472,0.00029315,3]
[367135441,1750665126813,-1226.13,0.00029315,3]
[367135442,1750665126823,-490.0,0.00029315,3]
[367135443,1750665126833,-506.19,0.00029315,3]
[367135444,1750665126843,-5920.75,0.00029315,3]
[367135445,1750665126853,-3800.08,0.00029315,3]
[367135446,1750665126863,-1255.63,0.00029315,3]
[367135447,1750665126873,-490.0,0.00029315,3]
[367135448,1750665126883,-1199.86,0.00029315,3]
[367135449,1750665126893,-490.0,0.00029315,3]
[367135450,1750665126903,-490.0,0.00029315,3]
[367135451,1750665126913,-490.0,0.00029315,3]
[367135452,1750665126923,-1109.69,0.00029315,3]
[367135453,1750665126933,-1771.9,0.00029315,3]
[367135454,1750665126947,-917.32,0.00029315,3]
[367135455,1750665126957,-605.35,0.00029315,3]
[367135456,1750665126967,-1200.51,0.00029315,3]
[367135457,1750665126977,-807.01,0.00029315,3]
[367135458,1750665126987,-490.0,0.00029315,3]
[367135459,1750665126997,-640.19392548,0.00029315,3]
[367135460,1750665127024,-151.33,0.0001399,2]
[367135461,1750665127034,-2242.91279083,0.00021918,2]
[367135462,1750665127044,-2870.15607452,0.00029315,3]
[367135463,1750665127053,-490.0,0.00029315,3]
[367135464,1750665127063,-1345.63,0.00029315,3]
[367135465,1750665127074,-2064.36,0.00029315,3]
[367135466,1750665127084,-517.745421,0.00029315,3]
[367135467,1750665127094,-3540.17,0.00029315,3]
[367135468,1750665127104,-1286.1,0.00029315,3]
[367135469,1750665127114,-584.71,0.00029315,3]
[367135470,1750665127123,-490.0,0.00029315,3]
[367135471,1750665127133,-269.681326,0.00029315,3]
[367135472,1750665127142,-4365.41,0.00029315,3]
[367135473,1750665127152,-740.92,0.00029315,3]
[367135474,1750665127162,-720.12,0.00029315,3]
[367135475,1750665127171,-3910.06,0.00029315,3]
[367135476,1750665127181,-516.11,0.00029315,3]
[367135477,1750665127190,-1622.01,0.00029315,3]
[367135478,1750665127200,-2230.53,0.00029315,3]
[367135479,1750665127210,-1195.43,0.00029315,3]
[367135480,1750665127220,-490.0,0.00029315,3]
[367135481,1750665127230,-2134.31,0.00029315,3]
[367135482,1750665127239,-954.76,0.00029315,3]
[367135483,1750665127249,-679.87353419,0.00029315,3]
[367135484,1750665128228,-151.33,0.0001399,2]
[367135485,1750665128238,-151.33,0.0001399,2]
[367135486,1750665128248,-151.33,0.0001399,2]
[367135487,1750665128258,-116.103,0.0001399,2]
[367135488,1750665128295,-35.227,0.0001399,2]
[367135489,1750665128305,-151.33,0.0001399,2]
[367135490,1750665128315,-151.33,0.0001399,2]
[367135491,1750665128325,-151.33,0.0001399,2]
[367135492,1750665128335,-151.33,0.0001399,2]
[367135493,1750665128345,-151.33,0.0001399,2]
[367135494,1750665128354,-151.33,0.0001399,2]
[367135495,1750665128364,-151.33,0.0001399,2]
[367135496,1750665128374,-151.33,0.0001399,2]
[367135497,1750665128383,-151.33,0.0001399,2]
[367135498,1750665128394,-151.33,0.0001399,2]
[367135499,1750665128403,-151.33,0.0001399,2]
[367135500,1750665128412,-151.33,0.0001399,2]
[367135501,1750665128423,-151.33,0.0001399,2]
[367135502,1750665128432,-151.33,0.0001399,2]
[367135503,1750665128442,-151.33,0.0001399,2]
[367135504,1750665128451,-151.33,0.0001399,2]
[367135505,1750665128461,-151.33,0.0001399,2]
[367135506,1750665128470,-151.33,0.0001399,2]
[367135507,1750665128479,-151.33,0.0001399,2]
[367135508,1750665128489,-151.33,0.0001399,2]
[367135509,1750665128694,-151.33,0.0001399,2]
[367135510,1750665128707,-151.33,0.0001399,2]
[367135511,1750665128717,-151.33,0.0001399,2]
[367135512,1750665128726,-151.33,0.0001399,2]
[367135513,1750665128736,-151.33,0.0001399,2]
[367135514,1750665128748,-151.33,0.0001399,2]
[367135515,1750665128765,-1742.193,0.00021918,2]
[367135516,1750665183840,500.0,0.00038291,60]
[367135518,1750665274991,500.0,0.00038292,60]
[367135519,1750665289093,500.0,0.00038292,60]
[367135520,1750665302245,500.0,0.00038292,60]
[367135521,1750665560402,15687.06282716,0.00038292,60]
[367135522,1750665671908,-804.28541859,0.0001199,2]
[367135523,1750665724572,257.72,0.00026001,120]
[367135524,1750665778158,50000.0,0.00037942,60]
[367135537,1750666044254,1500.0,0.000272,120]
[367135554,1750666233105,-250.0,0.00013595,2]
[367135555,1750666233115,-2500.0,0.00013595,2]
[367135556,1750666233125,-242.89,0.00013699,2]
[367135557,1750666233136,-1200.0,0.00013813,2]
[367135558,1750666233150,-250.0,0.00013814,2]
[367135559,1750666233161,-1000.0,0.00013814,5]
[367135560,1750666233171,-250.0,0.0001463,2]
[367135561,1750666233181,-2500.0,0.0001463,2]
[367135562,1750666233191,-1000.0,0.0001463,5]
[367135563,1750666233201,-1000.0,0.0001463,5]
[367135564,1750666233211,-1200.0,0.00015194,2]
[367135565,1750666233221,-187.13,0.00016712,2]
[367135566,1750666233231,-151.0,0.00017483,2]
[367135567,1750666233242,-151.0,0.00017492,2]
[367135568,1750666233252,-151.0,0.00017527,2]
[367135569,1750666233262,-151.0,0.00017575,2]
[367135570,1750666233273,-250.0,0.00018172,2]
[367135571,1750666233283,-23900.0,0.00018709,2]
[367135572,1750666233293,-200.0,0.00018759,2]
[367135573,1750666233303,-250.0,0.00018782,2]
[367135574,1750666233313,-257.72,0.0001891,2]
[367135575,1750666233323,-150.0,0.00018937,2]
[367135576,1750666233332,-155.27,0.0001895,2]
[367135577,1750666233342,-172.71,0.00019178,2]
[367135578,1750666233352,-167.49,0.00019462,2]
[367135579,1750666233362,-242.89,0.00020187,2]
[367135580,1750666233372,-1000.0,0.00020218,2]
[367135581,1750666233383,-297.11,0.00020588,2]
[367135582,1750666233393,-297.11,0.00020594,2]
[367135583,1750666233402,-297.11,0.00020599,2]
[367135584,1750666233412,-200.0,0.00020604,2]
[367135585,1750666233422,-297.11,0.00020604,2]
[367135586,1750666233432,-297.11,0.0002061,2]
[367135587,1750666233442,-297.11,0.00020615,2]
[367135588,1750666233452,-297.11,0.00020621,2]
[367135589,1750666233462,-297.11,0.00020626,2]
[367135590,1750666233472,-297.11,0.00020632,2]
[367135591,1750666233484,-297.11,0.00020637,2]
[367135592,1750666233494,-297.11,0.00020642,2]
[367135593,1750666233504,-297.11,0.00020648,2]
[367135594,1750666233514,-297.11,0.00020653,2]
[367135595,1750666233525,-297.11,0.00020659,2]
[367135596,1750666233535,-297.11,0.00020664,2]
[367135597,1750666233545,-297.11,0.0002067,2]
[367135598,1750666233557,-297.11,0.00020675,2]
[367135599,1750666233567,-297.11,0.0002068,2]
[367135600,1750666233577,-297.11,0.00020686,2]
[367135601,1750666233587,-297.11,0.00020691,2]
[367135602,1750666233597,-23350.97924412,0.000209,2]
[367135603,1750666233607,-666.0,0.00020937,2]
[367135604,1750666233618,-153.04,0.00020986,2]
[367135605,1750666233628,-46923.60800578,0.00021,7]
[367135608,1750666238475,-2300.54528673,0.00021,7]
[367135791,1750666240494,-1537.66842732,0.00021,7]
[367136055,1750666243290,-149238.17828017,0.00021,7]
[367136057,1750666243299,-642.22963689,0.00021,2]
[367136058,1750666243308,-500.50157012,0.00021,2]
[367136060,1750666243318,-167.49,0.00021068,2]
[367136062,1750666243327,-257.72,0.00021274,2]
[367136063,1750666243336,-161.57272898,0.0002155,2]
[367136065,1750666243345,-500.0,0.0002155,2]
[367136067,1750666243355,-500.0,0.0002155,2]
[367136069,1750666243364,-503.55539236,0.0002155,2]
[367136071,1750666243373,-173.80791599,0.0002155,2]
[367136072,1750666243382,-160.24774984,0.0002155,2]
[367136074,1750666243391,-157.70480367,0.0002155,2]
[367136076,1750666243401,-501.04773928,0.0002155,2]
[367136077,1750666243409,-500.0,0.0002155,2]
[367136079,1750666243419,-500.0,0.0002155,2]
[367136081,1750666243428,-500.0,0.0002155,2]
[367136083,1750666243437,-500.0,0.0002155,2]
[367136085,1750666243446,-500.0,0.0002155,2]
[367136086,1750666243455,-500.0,0.00021733,2]
[367136088,1750666243464,-162.86897465,0.00021733,2]
[367136090,1750666243473,-500.0,0.00021733,2]
[367136092,1750666243485,-266.7002214,0.00021733,2]
[367136093,1750666243494,-159.88133902,0.00021733,2]
[367136095,1750666243503,-305.60466708,0.00021733,2]
[367136097,1750666243513,-500.0,0.00021733,2]
[367136099,1750666243523,-160.53213907,0.00021733,2]
[367136101,1750666243532,-484.48338437,0.00021733,2]
[367136102,1750666243541,-500.46360171,0.00021733,2]
[367136104,1750666243550,-500.0,0.00021733,2]
[367136106,1750666243561,-518.82028568,0.00021733,2]
[367136108,1750666243570,-500.35015281,0.00021733,2]
[367136110,1750666243579,-999.99,0.00021757,2]
[367136111,1750666243588,-5737.61954736,0.00021757,2]
[367136113,1750666243599,-2099.22874411,0.00021757,2]
[367136115,1750666243610,-675.13032531,0.00021757,2]
[367136120,1750666243657,-1488.01138322,0.00021757,2]
[367136122,1750666243666,-8103.82,0.00021757,2]
[367136124,1750666243676,-150.99,0.00021757,2]
[367136126,1750666243685,-499.99,0.00021757,2]
[367136127,1750666243694,-150.99,0.00021757,2]
[367136129,1750666243703,-1182.19861678,0.00021763,2]
[367136131,1750666243714,-11344.09980225,0.00021763,2]
[367136133,1750666243725,-525.76285094,0.00021763,2]
[367136356,1750666246382,-9710.01897542,0.00021763,2]
[367136368,1750666246491,-151.0,0.00017947,2]
[367136370,1750666246501,-588.89899872,0.00021763,2]
[367136372,1750666246510,-1406.35660003,0.00021918,2]
[367136374,1750666246520,-531.87282813,0.00021918,2]
[367136376,1750666246531,-168.53778274,0.0002199,2]
[367136378,1750666246541,-1018.75564293,0.00021991,2]
[367136380,1750666246553,-4077.0537047,0.00021991,2]
[367136382,1750666246563,-834.59255148,0.00022024,2]
[367136384,1750666246572,-410.87878036,0.00022053,2]
[367136386,1750666246582,-500.0,0.00022088,2]
[367136388,1750666246592,-227.98937147,0.00022088,2]
[367136390,1750666246601,-500.0,0.00022088,2]
[367136392,1750666246611,-1340.14475296,0.00022088,2]
[367136394,1750666246620,-500.0,0.00022088,2]
[367136396,1750666246630,-1340.14475296,0.00022088,2]
[367136398,1750666246639,-252.41371196,0.00022088,2]
[367136400,1750666246649,-1340.14475296,0.00022088,2]
[367136402,1750666246659,-1340.14475296,0.00022088,2]
[367136404,1750666246668,-1340.14475296,0.00022088,2]
[367136406,1750666246678,-1340.14475296,0.00022088,2]
[367136408,1750666246687,-1340.14475296,0.00022088,2]
[367136410,1750666246697,-1340.14475296,0.00022088,2]
[367136412,1750666246707,-1340.14475296,0.00022088,2]
[367136414,1750666246716,-1340.14475296,0.00022088,2]
[367136415,1750666246725,-1340.14475296,0.00022088,2]
[367136417,1750666246735,-1340.14475296,0.00022088,2]
[367136419,1750666246744,-1340.14475296,0.00022088,2]
[367136422,1750666246754,-1340.14475296,0.00022088,2]
[367136424,1750666246764,-500.0,0.00022088,2]
[367136437,1750666246773,-1340.14475296,0.00022088,2]
[367136441,1750666246913,-1340.14475296,0.00022088,2]
[367136443,1750666246923,-1340.14475296,0.00022088,2]
[367136445,1750666246933,-1340.14475296,0.00022088,2]
[367136447,1750666246943,-1340.14475296,0.00022088,2]
[367136449,1750666246952,-1340.14475296,0.00022088,2]
[367136451,1750666246961,-1340.14475296,0.00022088,2]
[367136453,1750666246971,-1340.14475296,0.00022088,2]
[367136455,1750666246980,-1340.14475296,0.00022088,2]
[367136457,1750666246990,-1340.14475296,0.00022088,2]
[367136459,1750666246999,-1340.14475296,0.00022088,2]
[367136461,1750666247009,-1340.14475296,0.00022088,2]
[367136463,1750666247019,-1340.14475296,0.00022088,2]
[367136465,1750666247028,-1024.97185064,0.00022088,2]
[367136467,1750666247041,-263.258183,0.00022088,2]
[367136470,1750666247052,-51.91471932,0.00022088,2]
[367136472,1750666247062,-1340.14475296,0.00022088,2]
[367136474,1750666247072,-1000.0,0.00022098,2]
[367136476,1750666247081,-500.0,0.00022098,2]
[367136478,1750666247091,-1000.0,0.00022098,2]
[367136480,1750666247100,-157.77651523,0.000221,2]
[367136482,1750666247109,-163.93096107,0.000221,2]
[367136484,1750666247119,-500.0,0.000221,2]
[367136486,1750666247129,-504.49815322,0.000221,2]
[367136488,1750666247139,-500.0,0.000221,2]
[367136490,1750666247149,-171.31497094,0.000222,2]
[367136492,1750666247160,-500.0,0.000222,2]
[367136494,1750666247169,-500.0,0.000222,2]
[367136496,1750666247179,-501.05318906,0.000222,2]
[367136498,1750666247188,-500.0,0.000222,2]
[367136500,1750666247198,-500.0,0.00022281,2]
[367136502,1750666247207,-151.55791087,0.00022281,2]
[367136504,1750666247217,-1000.0,0.00022281,2]
[367136506,1750666247227,-2505.84661159,0.00022626,2]
[367136508,1750666247238,-2633.16320528,0.00022626,2]
[367136513,1750666247285,-18211.96942724,0.00022626,2]
[367136515,1750666247295,-500.0,0.00022646,2]
[367136517,1750666247304,-167.49,0.00022674,2]
[367136519,1750666247314,-1000.0,0.00022746,2]
[367136521,1750666247323,-1000.0,0.00022748,2]
[367136523,1750666247332,-500.0,0.00022748,2]
[367136525,1750666247342,-5095.80934757,0.00022763,2]
[367136527,1750666247352,-1500.0,0.00022829,2]
[367136529,1750666247361,-1840.0,0.00023,2]
[367136531,1750666247370,-210.37472857,0.00023,8]
[367136533,1750666247380,-210.37472841,0.00023,8]
[367136535,1750666247389,-210.37472841,0.00023233,8]
[367136537,1750666247399,-1596.13845881,0.00023377,2]
[367136539,1750666247409,-23350.97924411,0.00023489,2]
[367136541,1750666247418,-5095.80934757,0.00023535,2]
[367136543,1750666247427,-183.64,0.00023558,2]
[367136545,1750666247437,-257.72,0.00023638,2]
[367136547,1750666247446,-500.0,0.00023695,2]
[367136549,1750666247456,-173.0,0.00023836,2]
[367136551,1750666247466,-183.25,0.00023885,2]
[367136553,1750666247475,-158.23,0.00024,2]
[367136555,1750666247485,-153.04,0.00024134,2]
[367136557,1750666247499,-5095.80934757,0.00024308,2]
[367136559,1750666247509,-23350.97924411,0.00024352,2]
[367136561,1750666247518,-168.53778274,0.00024372,2]
[367136563,1750666247528,-210.37472841,0.000244,11]
[367136565,1750666247538,-1098.48263949,0.00024658,2]
[367136567,1750666247548,-106393.07546516,0.000248,2]
[367136569,1750666247559,-1666.8906682,0.000248,2]
[367136571,1750666247571,-1576.58693513,0.000248,2]
[367136584,1750666247690,-600.75,0.000248,2]
[367136587,1750666247702,-431.22961645,0.000248,2]
[367136675,1750666504740,50000.0,0.00037944,60]
[367136679,1750666733775,1215.11430743,0.00037945,60]
[367136686,1750667119774,2750.0,9e-05,2]
[367136687,1750667119800,7543.42720702,9e-05,2]
[367136688,1750667125745,1001.17026252,0.000108,2]
[367136689,1750667136835,1455.40253046,9e-05,2]
[367136690,1750667136866,990.97798806,9e-05,2]
[367136692,1750667154989,9704.78,0.00015,10]
[367136693,1750667155016,1020.8573529,0.00015,10]
[367136694,1750667156079,11631.05159794,6.94e-05,2]
[367136695,1750667168210,9011.60404651,0.0001,2]
[367136717,1750667377614,7137.0,0.00037946,60]
[367136720,1750667400679,50000.0,0.00037946,60]
[367136728,1750667432224,-266.58,0.00013699,2]
[367136730,1750667432235,-150.51965284,0.00013899,2]
[367136732,1750667432245,-134.40234716,0.0001399,2]
[367136734,1750667432279,-16.94765284,0.0001399,2]
[367136735,1750667432289,-151.35,0.0001399,2]
[367136736,1750667432299,-151.35,0.0001399,2]
[367136737,1750667432308,-151.35,0.0001399,2]
[367136738,1750667432317,-1200.0,0.00013998,2]
[367136739,1750667432328,-150.0,0.00013998,2]
[367136740,1750667432337,-300.0,0.00013998,2]
[367136741,1750667432347,-450.0,0.00013999,2]
[367136742,1750667432356,-194.71263466,0.00013999,2]
[367136743,1750667432366,-500.0,0.00013999,2]
[367136744,1750667432375,-621.91512369,0.00013999,2]
[367136745,1750667432384,-568.29871045,0.00013999,2]
[367136746,1750667432395,-500.0,0.00013999,2]
[367136747,1750667432405,-500.0,0.00013999,2]
[367136748,1750667432415,-500.0,0.00013999,2]
[367136749,1750667432425,-500.0,0.00013999,2]
[367136750,1750667432434,-511.81497676,0.00013999,2]
[367136751,1750667432445,-500.0,0.00013999,2]
[367136752,1750667432455,-500.0,0.00013999,2]
[367136753,1750667432464,-500.0,0.00013999,2]
[367136754,1750667432474,-720.00814263,0.00014,2]
[367136755,1750667432485,-502.0,0.00014,2]
[367136756,1750667432505,-847.17795491,0.00014,2]
[367136757,1750667432517,-1271.0,0.00014,2]
[367136758,1750667432537,-2141.88787415,0.00014,2]
[367136759,1750667432550,-772.3145016,0.00014,2]
[367136760,1750667432562,-1893.15903252,0.00014,2]
[367136761,1750667432573,-526.92708834,0.00014,2]
[367136762,1750667432585,-1212.63177869,0.00014,2]
[367136763,1750667432596,-544.40929933,0.00014,2]
[367136764,1750667432608,-304.51499059,0.00014,2]
[367136765,1750667432620,-721.19610448,0.00014,2]
[367136766,1750667432633,-905.41478294,0.00014,2]
[367136767,1750667432644,-16289.02,0.00014,2]
[367136768,1750667432660,-1387.14679198,0.00014,2]
[367136769,1750667432672,-605.03317074,0.00014,2]
[367136770,1750667432684,-98266.62521423,0.00014,2]
[367136773,1750667432699,-565.32363814,0.00014,2]
[367136815,1750667438173,-424.538785,0.00014,2]
[367136816,1750667438185,-338.8739827,0.00014,2]
[367136817,1750667438229,-9022.52355987,0.00014,2]
[367136818,1750667438243,-10460.71394464,0.00014,2]
[367136819,1750667438285,-876.49937008,0.00014,2]
[367136820,1750667438296,-1115.0,0.00014,2]
[367136821,1750667438307,-1372.524025,0.00014,2]
[367136822,1750667438340,-517.22467988,0.00014,2]
[367136823,1750667438351,-483.9569913,0.00014,2]
[367136824,1750667438501,-3791069.85098622,0.00014,2]
[367137011,1750667440690,-1942.9070334,0.00014,2]
[367137013,1750667440702,-23785.03782982,0.00014,2]
[367137015,1750667440713,-453.8784,0.00014,2]
[367137018,1750667440728,-895.93980559,0.00014,2]
[367137020,1750667440739,-10342.85860827,0.00014,2]
[367137025,1750667440780,-11662.5448,0.00014,2]
[367137027,1750667440791,-50548.7014443,0.00014,2]
[367137032,1750667440830,-15736.90094001,0.00014,2]
[367137298,1750667443414,-6916.6427971,0.00014,2]
[367137299,1750667443425,-5812.62036968,0.00014,2]
[367137300,1750667443437,-2911.7881182,0.00014,2]
[367137301,1750667443446,-6400.74948121,0.000148,2]
[367137302,1750667443456,-3935.0679022,0.000149,2]
[367137303,1750667443468,-3586.7102229,0.000149,2]
[367137304,1750667443488,-2686.97652919,0.000149,2]
[367137305,1750667443527,-1466.73496781,0.000149,2]
[367137306,1750667443536,-250.0,0.00015,2]
[367137307,1750667443545,-150.0,0.00015118,2]
[367137308,1750667443555,-849.723334,0.000154,2]
[367137309,1750667443564,-11675.48962205,0.00015444,2]
[367137311,1750667443574,-2820.84620386,0.00015989,2]
[367137313,1750667443585,-4501.33634472,0.00015989,2]
[367137316,1750667443612,-4353.30707347,0.00015989,2]
[367137318,1750667443622,-300.0,0.00015999,2]
[367137320,1750667443631,-3116.66723279,0.00016,2]
[367137322,1750667443642,-30205.16399384,0.00016,2]
[367137329,1750667443691,-474.38004992,0.00016,2]
[367137331,1750667443703,-1121.145,0.00016,2]
[367137333,1750667443714,-497.22216299,0.00016,2]
[367137350,1750667443864,-942.316296,0.00016,2]
[367137352,1750667443876,-1684.33331526,0.00016,2]
[367137354,1750667443888,-562.6023957,0.00016,2]
[367137356,1750667443900,-730.53553721,0.00016,2]
[367137594,1750667446459,-3793.47981446,0.00016,2]
[367137596,1750667446469,-200.0,0.0001634,2]
[367137598,1750667446479,-5559.17617485,0.00016435,2]
[367137600,1750667446488,-3351.92585943,0.00016533,2]
[367137605,1750667446524,-1490.42905445,0.00016533,2]
[367137607,1750667446535,-6833.13470817,0.00016533,2]
[367137610,1750667446545,-349.89009212,0.000166,2]
[367137612,1750667446555,-151.0,0.00016825,2]
[367137614,1750667446565,-151.0,0.00017,2]
[367137616,1750667446574,-300.0,0.00017,2]
[367137618,1750667446583,-11675.48962205,0.00017078,2]
[367137620,1750667446591,-151.0,0.00017246,2]
[367137622,1750667446600,-200.0,0.00017474,2]
[367137623,1750667446610,-11675.48962205,0.00017622,2]
[367137626,1750667446620,-183.25,0.00017747,2]
[367137627,1750667446630,-29167.19613871,0.00018,2]
[367137638,1750667446725,-4864.28,0.00018,2]
[367137643,1750667446761,-125062.62749707,0.00018,2]
[367137655,1750667446866,-1535.68284931,0.00018,2]
[367137768,1750667546330,41442.84,0.00037964,60]
[367137769,1750667611827,156.55,0.0002679,120]
[367137771,1750667656109,206.11,0.00024765,120]
[367137772,1750667656514,206.11,0.00027017,120]